bitfinex-derivatives/quotes_BTCF0:USTF0_20251128
["timestamp","ask_amount","ask_price","bid_price","bid_amount"]
[1764353855648,0.05009,90789.0,90788.0,0.0612735]
[1764353855838,0.05009,90789.0,90788.0,0.05026]
[1764353856044,0.05009,90789.0,90788.0,0.02471]
[1764353856348,0.04909,90785.0,90784.0,0.0357239]
[1764353856550,0.04909,90785.0,90784.0,0.0612739]
[1764353859451,0.0110138,90786.0,90778.0,0.12064365]
[1764353859452,0.0601046,90779.0,90778.0,0.12064365]
[1764353859643,0.0601046,90779.0,90778.0,0.09509365]
[1764353860845,0.0601046,90779.0,90778.0,0.03781365]
[1764353861344,0.0611046,90779.0,90778.0,0.02471]
[1764353861741,0.05009,90779.0,90778.0,0.05026]
[1764353867258,0.44009,90779.0,90778.0,0.05026]
[1764353868260,0.4511046,90779.0,90778.0,0.0612747]
[1764353869160,0.4511046,90779.0,90778.0,0.05026]
[1764353869464,0.8311046,90779.0,90778.0,0.05026]
[1764353870664,0.8311046,90779.0,90778.0,0.02471]
[1764353870859,0.8311046,90779.0,90776.0,0.01334506]
[1764353870860,0.0110149,90777.0,90776.0,0.01334506]
[1764353871072,0.0601052,90774.0,90773.0,0.04574]
[1764353871363,0.4501052,90774.0,90773.0,0.07045]
[1764353871563,0.4501052,90774.0,90773.0,0.05026]
[1764353873763,0.0601055,90772.0,90771.0,0.0357256]
[1764353873965,0.0601055,90772.0,90771.0,0.0612756]
[1764353874354,0.04909,90772.0,90771.0,0.07436554]
[1764353874566,0.001,90774.0,90773.0,0.0612753]
[1764353874961,0.04909,90784.0,90783.0,0.05026]
[1764353876063,0.060104,90784.0,90783.0,0.05026]
[1764353878073,0.061104,90784.0,90783.0,0.05026]
[1764353878861,0.491104,90784.0,90783.0,0.05026]
[1764353879363,0.09909,90784.0,90783.0,0.05026]
[1764353879564,0.10009,90784.0,90783.0,0.06238]
[1764353881474,0.41009,90784.0,90783.0,0.05026]
[1764353882274,0.43582573,90784.0,90783.0,0.05026]
[1764353882873,0.43582573,90784.0,90783.0,0.0612741]
[1764353883070,0.07582573,90784.0,90783.0,0.0612741]
[1764353883267,0.001,90784.0,90783.0,0.0612741]
[1764353883468,0.001,90784.0,90783.0,0.1312741]
[1764353883865,0.02276519,90798.0,90797.0,0.0581624]
[1764353884174,0.00016519,90798.0,90797.0,0.0727824]
[1764353885176,0.01101,90818.0,90805.0,0.0110114]
[1764353885371,0.011007,90842.0,90827.0,0.0581588]
[1764353885372,1.5,90828.0,90827.0,0.0581588]
[1764353885679,1.89560667,90828.0,90827.0,0.04715]
[1764353886267,1.52,90828.0,90827.0,0.04715]
[1764353886574,0.04606,90819.0,90818.0,0.33047702]
[1764353886774,0.04606,90819.0,90818.0,0.07294499]
[1764353888589,0.05006,90819.0,90818.0,0.07294499]
[1764353890084,0.0266,90819.0,90818.0,0.07294499]
[1764353890271,0.004,90819.0,90818.0,0.07294499]
[1764353890674,0.05006,90819.0,90818.0,0.07294499]
[1764353891569,0.83006,90819.0,90818.0,0.02277519]
[1764353891767,0.53006,90819.0,90818.0,0.02277519]
[1764353893381,0.53006,90819.0,90818.0,0.00016519]
[1764353893585,0.77006,90819.0,90818.0,0.01338378]
[1764353893780,0.77006,90819.0,90818.0,0.00016519]
[1764353894781,0.77006,90819.0,90800.0,0.25753203]
[1764353894782,0.04573,90805.0,90804.0,0.0679516]
[1764353894987,0.0453,90798.0,90797.0,0.04232]
[1764353895188,0.0563132,90791.0,90790.0,0.04232]
[1764353895379,0.4163132,90791.0,90790.0,0.04232]
[1764353895876,0.0863132,90791.0,90790.0,0.04232]
[1764353896289,0.0563132,90791.0,90790.0,0.04232]
[1764353897582,0.0563132,90791.0,90790.0,0.04632]
[1764353898089,0.0563132,90791.0,90790.0,0.04232]
[1764353898385,0.0453,90789.0,90788.0,0.04139]
[1764353898571,0.0453,90789.0,90788.0,0.07590017]
[1764353899181,0.0453,90789.0,90788.0,0.09715017]
[1764353900790,0.0331832,90791.0,90790.0,0.05508]
[1764353900995,0.0563132,90791.0,90790.0,0.05508]
[1764353901283,0.0563132,90791.0,90790.0,0.04232]
[1764353901983,0.0563132,90791.0,90790.0,0.05508]
[1764353902579,0.02217,90791.0,90790.0,0.05508]
[1764353902787,0.0563131,90792.0,90791.0,0.0533332]
[1764353902975,0.0563131,90792.0,90791.0,0.04232]
[1764353903182,0.0563134,90789.0,90788.0,0.05483017]
[1764353903487,0.4863134,90789.0,90788.0,0.05483017]
[1764353903688,0.4863134,90789.0,90788.0,0.07590017]
[1764353904193,0.0331831,90792.0,90791.0,0.04232]
[1764353904387,0.0563131,90792.0,90791.0,0.04232]
[1764353904993,0.0453,90792.0,90791.0,0.04232]
[1764353905681,0.02217,90792.0,90791.0,0.04232]
[1764353906892,0.08855979,90799.0,90798.0,0.0553823]
[1764353906893,0.13443979,90799.0,90798.0,0.0553823]
[1764353907084,0.06588,90799.0,90798.0,0.04437]
[1764353907284,0.46588,90799.0,90798.0,0.04437]
[1764353907688,0.46588,90799.0,90788.0,0.05483017]
[1764353907689,0.0568934,90789.0,90788.0,0.04139]
[1764353907882,0.04588,90770.0,90769.0,0.04437]
[1764353908486,0.04588,90770.0,90769.0,0.0553857]
[1764353908688,0.02325,90777.0,90776.0,0.069175]
[1764353908883,0.04588,90777.0,90776.0,0.069175]
[1764353910484,0.04688,90777.0,90776.0,0.069175]
[1764353912386,0.001,90777.0,90776.0,0.449175]
[1764353913385,0.00016519,90779.0,90778.0,0.04437]
[1764353913586,0.02341519,90779.0,90778.0,0.04437]
[1764353914285,0.00016519,90779.0,90778.0,0.04437]
[1764353914596,0.04604519,90779.0,90778.0,0.04437]
[1764353914796,0.04604519,90779.0,90778.0,0.04637]
[1764353916109,0.40604519,90779.0,90778.0,0.002]
[1764353916391,0.0568957,90770.0,90769.0,0.01333792]
[1764353916591,0.04588,90769.0,90768.0,0.05676]
[1764353916792,0.04588,90767.0,90763.0,0.0110166]
[1764353916988,0.46588,90767.0,90766.0,0.01276983]
[1764353917191,0.16588,90767.0,90766.0,0.04464544]
[1764353917390,0.47588,90767.0,90766.0,0.04464544]
[1764353918100,0.47588,90767.0,90766.0,0.04664544]
[1764353918296,0.47588,90767.0,90766.0,0.00227544]
[1764353918600,0.47588,90767.0,90766.0,0.02433544]
[1764353918902,0.47588,90767.0,90766.0,0.00227544]
[1764353919096,0.04588,90767.0,90766.0,0.04664544]
[1764353919598,0.0568961,90768.0,90767.0,0.04437]
[1764353920397,0.04588,90767.0,90766.0,0.00227544]
[1764353920599,0.15325,90767.0,90766.0,0.04464544]
[1764353920795,0.27325,90767.0,90766.0,0.04464544]
[1764353920995,0.29588,90767.0,90766.0,0.04464544]
[1764353921302,0.06588,90767.0,90766.0,0.04464544]
[1764353922594,0.47588,90767.0,90766.0,0.04464544]
[1764353923099,0.47588,90767.0,90766.0,0.04664544]
[1764353923605,0.06588,90767.0,90766.0,0.04664544]
[1764353923793,0.29588,90767.0,90766.0,0.04664544]
[1764353925092,0.29588,90767.0,90766.0,0.05766164]
[1764353926407,0.04588,90767.0,90766.0,0.05766164]
[1764353928499,0.02341519,90779.0,90778.0,0.0110147]
[1764353928805,0.04604519,90779.0,90778.0,0.0553847]
[1764353928999,0.02341519,90779.0,90778.0,0.0553847]
[1764353929204,0.00016519,90779.0,90778.0,0.0553847]
[1764353929606,0.00116519,90779.0,90778.0,0.0553847]
[1764353929905,0.04704519,90779.0,90778.0,0.0553847]
[1764353931495,0.04704519,90779.0,90769.0,0.21868732]
[1764353931702,0.04588,90770.0,90769.0,0.24926732]
[1764353931912,0.04588,90770.0,90769.0,0.04437]
[1764353932505,0.04588,90770.0,90769.0,0.0553858]
[1764353934209,0.47588,90770.0,90769.0,0.0553858]
[1764353934604,0.17588,90770.0,90769.0,0.0553858]
[1764353934813,0.42588,90770.0,90769.0,0.0553858]
[1764353935010,0.04588,90770.0,90769.0,0.0553858]
[1764353935203,0.14588,90770.0,90769.0,0.0553858]
[1764353935407,0.42588,90770.0,90769.0,0.0553858]
[1764353936012,0.42588,90770.0,90769.0,0.0563858]
[1764353936715,0.42588,90770.0,90769.0,0.0340758]
[1764353937211,0.42588,90770.0,90769.0,0.02306]
[1764353937409,0.42588,90770.0,90769.0,0.001]
[1764353937816,0.42588,90770.0,90769.0,0.02297]
[1764353938015,0.42588,90770.0,90769.0,0.02397]
[1764353938209,0.79588,90770.0,90769.0,0.001]
[1764353938415,0.04324,90767.0,90766.0,0.00027544]
[1764353938612,0.81324,90767.0,90766.0,0.00027544]
[1764353939514,0.81324,90767.0,90766.0,0.00227544]
[1764353940213,0.83876994,90767.0,90766.0,0.00227544]
[1764353940614,0.0669369,90760.0,90759.0,0.06089009]
[1764353940918,0.0669369,90760.0,90743.0,8.587e-05]
[1764353940919,0.0540589,90744.0,90743.0,8.587e-05]
[1764353941110,0.6840589,90744.0,90743.0,8.587e-05]
[1764353941509,0.23304,90744.0,90743.0,0.04429587]
[1764353941708,0.46304,90744.0,90743.0,0.04429587]
[1764353942406,0.46504,90744.0,90743.0,0.04429587]
[1764353942607,0.06504,90744.0,90743.0,0.04429587]
[1764353943114,0.002,90744.0,90743.0,0.04429587]
[1764353945325,0.0540581,90751.0,90750.0,0.0552281]
[1764353945516,0.4040581,90751.0,90750.0,0.0552281]
[1764353946222,0.02134,90751.0,90750.0,0.0552281]
[1764353946415,0.04304,90751.0,90750.0,0.0552281]
[1764353946612,0.04404,90751.0,90750.0,0.0552281]
[1764353946815,0.001,90751.0,90750.0,0.0552281]
[1764353948222,0.04404,90751.0,90750.0,0.0552281]
[1764353948818,0.02134,90751.0,90750.0,0.0552281]
[1764353949019,0.001,90751.0,90750.0,0.0552281]
[1764353949426,0.04320529,90753.0,90752.0,0.05757]
[1764353950128,0.02150529,90753.0,90752.0,0.05757]
[1764353950329,0.04320529,90753.0,90752.0,0.05757]
[1764353950626,0.00016529,90753.0,90752.0,0.05757]
[1764353951228,0.02150529,90753.0,90752.0,0.05757]
[1764353952521,0.04320529,90753.0,90752.0,0.05757]
[1764353955226,0.45320529,90753.0,90752.0,0.05757]
[1764353955634,0.04313,90751.0,90750.0,0.0337181]
[1764353955820,0.04313,90751.0,90750.0,0.0567481]
[1764353956627,0.02267529,90753.0,90752.0,0.04573]
[1764353956831,0.39329529,90753.0,90752.0,0.04573]
[1764353957033,0.38329529,90753.0,90752.0,0.04573]
[1764353958923,0.38329529,90753.0,90752.0,0.0567479]
[1764353959118,0.38429529,90753.0,90752.0,0.0567479]
[1764353959728,0.38329529,90753.0,90752.0,0.0567479]
[1764353960030,0.02167529,90753.0,90752.0,0.0567479]
[1764353960334,0.00016529,90753.0,90752.0,0.0567479]
[1764353960936,0.02167529,90753.0,90752.0,0.0567479]
[1764353961141,0.04329529,90753.0,90752.0,0.0567479]
[1764353961326,0.02167529,90753.0,90752.0,0.0567479]
[1764353961636,0.04329529,90753.0,90752.0,0.0567479]
[1764353961838,0.05431309,90753.0,90752.0,0.0567479]
[1764353963225,0.43431309,90753.0,90752.0,0.0567479]
[1764353963429,0.43531309,90753.0,90752.0,0.0567479]
[1764353964233,0.43531309,90753.0,90752.0,0.0227]
[1764353964429,0.0541481,90750.0,90749.0,0.0567482]
[1764353964635,0.04313,90750.0,90749.0,0.0567482]
[1764353966030,0.04413,90750.0,90749.0,0.0567482]
[1764353966333,0.04313,90750.0,90749.0,0.0567482]
[1764353966643,0.04413,90750.0,90749.0,0.0567482]
[1764353972137,0.02251,90750.0,90749.0,0.0567482]
[1764353973243,0.001,90750.0,90749.0,0.0567482]
[1764353974753,0.00016529,90753.0,90752.0,0.0562379]
[1764353975137,0.0110166,90763.0,90762.0,0.0699067]
[1764353975341,0.1727166,90763.0,90762.0,0.0699067]
[1764353975640,0.1617,90763.0,90762.0,0.0699067]
[1764353977438,0.3817,90763.0,90762.0,0.0699067]
[1764353977751,0.4034,90763.0,90762.0,0.05889]
[1764353978333,0.4044,90763.0,90762.0,0.05889]
[1764353978743,0.0544167,90762.0,90761.0,0.0110167]
[1764353978951,0.37,90762.0,90761.0,0.0562367]
[1764353979140,0.001,90763.0,90762.0,0.05889]
[1764353979340,0.4444,90763.0,90762.0,0.05889]
[1764353980637,0.0544,90763.0,90762.0,0.05889]
[1764353980840,0.011,90763.0,90762.0,0.05889]
[1764353981443,0.00016529,90772.0,90771.0,0.0562356]
[1764353981645,0.0434,90789.0,90788.0,0.0562335]
[1764353981952,0.43859506,90789.0,90788.0,0.0562335]
[1764353982347,0.52820001,90789.0,90788.0,0.0562335]
[1764353983249,0.43859506,90789.0,90788.0,0.0562335]
[1764353984145,0.4134,90789.0,90788.0,0.0562335]
[1764353984345,0.8534,90789.0,90788.0,0.04522]
[1764353984546,0.8534,90789.0,90780.0,0.01367]
[1764353984547,0.0544144,90781.0,90780.0,0.04522]
[1764353984853,0.4844144,90781.0,90780.0,0.04522]
[1764353985646,0.4844144,90781.0,90780.0,0.0572862]
[1764353986353,0.4854144,90781.0,90780.0,0.0572862]
[1764353987157,0.8554144,90781.0,90780.0,0.0120662]
[1764353987361,0.8554144,90781.0,90779.0,0.00016529]
[1764353987657,0.0434,90780.0,90779.0,0.00016529]
[1764353987847,0.9134,90780.0,90779.0,0.00016529]
[1764353988856,0.9144,90780.0,90779.0,0.00016529]
[1764353990551,0.9134,90780.0,90779.0,0.00016529]
[1764353990752,0.9144,90780.0,90779.0,0.00016529]
[1764353991153,0.9134,90780.0,90779.0,0.00016529]
[1764353991351,0.9164,90780.0,90779.0,0.00016529]
[1764353991856,0.9154,90780.0,90779.0,0.00016529]
[1764353992359,0.9134,90780.0,90779.0,0.00016529]
[1764353992559,0.9154,90780.0,90779.0,0.00016529]
[1764353993562,0.9154,90780.0,90720.0,0.17387039]
[1764353993563,0.0434,90758.0,90757.0,0.06007]
[1764353993757,0.0544172,90758.0,90757.0,0.08224]
[1764353994260,0.0434,90758.0,90757.0,0.08224]
[1764353994854,0.0434,90758.0,90757.0,0.09449218]
[1764353995050,0.0217,90758.0,90757.0,0.09449218]
[1764353995359,0.0544166,90763.0,90762.0,0.0699067]
[1764353995559,0.1744166,90763.0,90762.0,0.0699067]
[1764353997457,0.4244166,90763.0,90762.0,0.0699067]
[1764353998161,0.4244166,90763.0,90762.0,0.05889]
[1764353998366,0.0539972,90758.0,90757.0,0.09385218]
[1764353998559,0.0539972,90758.0,90757.0,0.09285218]
[1764353999867,0.0539972,90758.0,90757.0,0.09385218]
[1764354001664,0.8239972,90758.0,90757.0,0.03802]
[1764354002255,0.0110183,90749.0,90748.0,0.00016529]
[1764354002562,0.8339983,90749.0,90748.0,0.00016529]
[1764354002764,0.8339983,90749.0,90743.0,8.587e-05]
[1764354002765,0.0539989,90744.0,90743.0,8.587e-05]
[1764354002964,0.8939989,90744.0,90743.0,0.01254744]
[1764354003164,0.8939989,90744.0,90743.0,8.587e-05]
[1764354003474,0.8939989,90744.0,90720.0,0.01344]
[1764354003475,0.0540009,90727.0,90726.0,0.05729556]
[1764354003772,0.054,90735.0,90734.0,0.05702]
[1764354003959,0.434,90735.0,90734.0,0.05702]
[1764354004356,0.00016529,90736.0,90735.0,0.0546]
[1764354004759,0.00025116,90736.0,90735.0,0.0546]
[1764354005363,0.00025116,90736.0,90735.0,0.02136]
[1764354005364,0.39323116,90736.0,90735.0,0.02136]
[1764354005569,0.04298,90735.0,90734.0,0.01102]
[1764354005760,0.47298,90735.0,90734.0,0.0546]
[1764354005955,0.47298,90735.0,90734.0,0.06804]
[1764354006858,0.03,90735.0,90734.0,0.06804]
[1764354007062,0.00025116,90736.0,90735.0,0.04358]
[1764354007366,0.05195116,90736.0,90735.0,0.04358]
[1764354007565,0.00025116,90736.0,90735.0,0.04358]
[1764354010070,0.00025116,90736.0,90735.0,0.33358]
[1764354010973,0.0329681,90751.0,90750.0,0.04358]
[1764354011272,0.4642481,90751.0,90750.0,0.04358]
[1764354011966,0.4642481,90751.0,90750.0,0.0545981]
[1764354012461,0.4652481,90751.0,90750.0,0.0545981]
[1764354013865,0.45423,90751.0,90750.0,0.0545981]
[1764354014264,0.00016529,90760.0,90757.0,0.0110173]
[1764354014462,0.00016529,90760.0,90759.0,0.04358]
[1764354014674,0.04323,90781.0,90780.0,0.04358]
[1764354014872,0.49799167,90781.0,90780.0,0.04358]
[1764354015976,0.50099167,90781.0,90780.0,0.04358]
[1764354016179,0.04623,90781.0,90780.0,0.04358]
[1764354016472,0.42623,90781.0,90780.0,0.04358]
[1764354016670,0.003,90781.0,90780.0,0.04358]
[1764354017076,0.04377529,90790.0,90789.0,0.04609]
[1764354017274,0.46377529,90790.0,90789.0,0.04609]
[1764354017774,0.46377529,90790.0,90789.0,0.0571034]
[1764354018179,0.46477529,90790.0,90789.0,0.0571034]
[1764354018576,0.46977529,90790.0,90789.0,0.0571034]
[1764354018886,0.46977529,90790.0,90784.0,0.01311]
[1764354018887,0.0546239,90785.0,90784.0,0.0592]
[1764354019180,0.46361,90785.0,90784.0,0.0592]
[1764354020482,0.46561,90785.0,90784.0,0.0592]
[1764354020682,0.46661,90785.0,90784.0,0.0592]
[1764354021679,0.0546244,90781.0,90780.0,0.01209526]
[1764354021878,0.4646244,90781.0,90780.0,0.04609]
[1764354022996,0.04361,90781.0,90780.0,0.04609]
[1764354023188,0.02166,90781.0,90780.0,0.04609]
[1764354023585,0.001,90781.0,90780.0,0.04609]
[1764354023788,0.00016529,90790.0,90789.0,0.0571034]
[1764354024997,0.04388531,90806.0,90805.0,0.0571015]
[1764354025202,0.00027531,90806.0,90805.0,0.0571015]
[1764354026397,0.00016519,90815.0,90805.0,0.0571015]
[1764354026398,0.00016519,90815.0,90814.0,0.0540004]
[1764354026704,1.5,90832.0,90831.0,0.04299]
[1764354026885,2.33,90832.0,90831.0,0.02102]
[1764354028100,0.04444,90823.0,90822.0,0.00016519]
[1764354028290,0.84444,90823.0,90822.0,0.00016519]
[1764354028792,0.57444,90823.0,90822.0,0.00016519]
[1764354028994,0.14444,90823.0,90822.0,0.00016519]
[1764354029299,0.54444,90823.0,90822.0,0.00016519]
[1764354029999,0.46644,90823.0,90822.0,0.02118519]
[1764354030199,0.46644,90823.0,90822.0,0.00016519]
[1764354030598,0.46544,90823.0,90822.0,0.00016519]
[1764354030899,0.91544,90823.0,90822.0,0.00016519]
[1764354031098,0.54544,90823.0,90822.0,0.00016519]
[1764354032397,0.46544,90823.0,90822.0,0.00016519]
[1764354032602,0.02322,90823.0,90822.0,0.04315519]
[1764354033195,0.04544,90823.0,90822.0,0.04315519]
[1764354033493,0.8864493,90823.0,90822.0,0.04315519]
[1764354033690,0.8864493,90823.0,90822.0,0.00016519]
[1764354033891,0.8864493,90823.0,90822.0,0.02118519]
[1764354034086,0.87444,90823.0,90822.0,0.04315519]
[1764354034893,0.87444,90823.0,90822.0,0.00016519]
[1764354036209,0.87544,90823.0,90822.0,0.00016519]
[1764354036902,0.87644,90823.0,90822.0,0.00016519]
[1764354037207,0.87544,90823.0,90822.0,0.00016519]
[1764354037406,0.87844,90823.0,90822.0,0.00016519]
[1764354038898,0.87544,90823.0,90822.0,0.00016519]
[1764354039298,0.04444,90809.0,90808.0,0.0110111]
[1764354039500,0.40444,90809.0,90808.0,0.0540011]
[1764354040003,0.04444,90806.0,90805.0,0.0110114]
[1764354040202,0.42444,90806.0,90805.0,0.02344186]
[1764354040405,0.42444,90806.0,90805.0,0.05542046]
[1764354040708,0.39444,90806.0,90805.0,0.05542046]
[1764354040905,0.15444,90806.0,90805.0,0.05542046]
[1764354041209,0.39444,90806.0,90805.0,0.05542046]
[1764354041707,0.39444,90806.0,90805.0,0.01243046]
[1764354041898,0.0110123,90799.0,90797.0,0.0540024]
[1764354042098,0.02444,90798.0,90797.0,0.0540024]
[1764354042300,0.03444,90798.0,90797.0,0.0540024]
[1764354043096,0.03444,90798.0,90797.0,0.0550024]
[1764354043301,0.0110105,90814.0,90797.0,0.0550024]
[1764354043302,0.02444,90807.0,90806.0,0.0540012]
[1764354043705,0.02444,90807.0,90806.0,0.04299]
[1764354043906,0.0110113,90806.0,90800.0,0.01369]
[1764354044108,0.0354523,90798.0,90797.0,0.01318035]
[1764354044309,0.0354523,90798.0,90797.0,0.02202]
[1764354044310,0.3854523,90798.0,90797.0,0.02202]
[1764354045012,0.3854523,90798.0,90797.0,0.04399]
[1764354045512,0.02444,90798.0,90797.0,0.04399]
[1764354045706,0.17424,90809.0,90796.0,0.00016519]
[1764354045707,0.0354521,90800.0,90799.0,0.04299]
[1764354045913,0.8354521,90800.0,90799.0,0.04299]
[1764354046213,0.4054521,90800.0,90799.0,0.04299]
[1764354046514,0.0354521,90800.0,90799.0,0.04299]
[1764354046709,0.3454521,90800.0,90799.0,0.04299]
[1764354047008,0.001,90800.0,90799.0,0.04299]
[1764354048302,0.023232,90801.0,90800.0,0.0676921]
[1764354048503,0.413232,90801.0,90800.0,0.0676921]
[1764354049109,0.023232,90801.0,90800.0,0.0676921]
[1764354049413,0.203232,90801.0,90800.0,0.0676921]
[1764354050108,0.203232,90801.0,90800.0,0.0686921]
[1764354051599,0.01222,90801.0,90800.0,0.0686921]
[1764354051805,0.02444,90806.0,90805.0,0.0540015]
[1764354052018,0.38444,90806.0,90805.0,0.0540015]
[1764354052216,0.40902953,90806.0,90805.0,0.0540015]
[1764354052613,0.02458953,90806.0,90805.0,0.0540015]
[1764354052808,0.02460519,90815.0,90814.0,0.04299]
[1764354053007,0.06020347,90815.0,90814.0,0.04299]
[1764354053308,0.04919327,90815.0,90814.0,0.04299]
[1764354053510,0.06020347,90815.0,90814.0,0.0540004]
[1764354054909,0.06120347,90815.0,90814.0,0.0540004]
[1764354057810,0.42120347,90815.0,90814.0,0.0540004]
[1764354058314,0.42120347,90815.0,90814.0,0.06622317]
[1764354060108,0.85120347,90815.0,90814.0,0.05521277]
[1764354060417,0.85120347,90815.0,90814.0,0.06622317]
[1764354060606,0.85120347,90815.0,90814.0,0.01222277]
[1764354060802,0.0354506,90812.0,90811.0,0.08233]
[1764354061115,0.46003868,90812.0,90811.0,0.08233]
[1764354061902,0.46103868,90812.0,90811.0,0.08233]
[1764354063119,0.46103868,90812.0,90811.0,0.0933407]
[1764354063316,0.46103868,90812.0,90811.0,0.1054014]
[1764354063611,0.87103868,90812.0,90811.0,0.0510607]
[1764354064005,0.87103868,90812.0,90811.0,0.0732207]
[1764354064614,0.87103868,90812.0,90811.0,0.0943907]
[1764354065419,0.87117457,90812.0,90811.0,0.0943907]
[1764354065904,0.71117457,90812.0,90811.0,0.0943907]
[1764354066110,0.02572397,90812.0,90811.0,0.5254014]
[1764354066306,0.001,90812.0,90811.0,0.5254014]
[1764354067208,0.001,90812.0,90811.0,0.1054014]
[1764354067414,0.001,90812.0,90811.0,0.0732207]
[1764354067415,0.83544,90812.0,90811.0,0.0732207]
[1764354067611,0.46995427,90812.0,90811.0,0.1070107]
[1764354067920,0.86995427,90812.0,90811.0,0.1070107]
[1764354068514,0.61995427,90812.0,90811.0,0.1070107]
[1764354069221,0.88995427,90812.0,90811.0,0.0510607]
[1764354069812,0.88995427,90812.0,90811.0,0.039]
[1764354070110,0.88995427,90812.0,90811.0,0.036]
[1764354070521,0.88995427,90812.0,90811.0,0.03383472]
[1764354070714,0.02444,90797.0,90796.0,0.02232519]
[1764354070914,0.7854524,90797.0,90796.0,0.00016519]
[1764354071110,0.80996667,90797.0,90796.0,0.00016519]
[1764354071523,0.57996667,90797.0,90796.0,0.00016519]
[1764354072016,0.15996667,90797.0,90796.0,0.04649519]
[1764354072529,0.15996667,90797.0,90796.0,0.05750779]
[1764354072826,0.02451427,90797.0,90796.0,0.04649519]
[1764354073017,0.04895427,90797.0,90796.0,0.04649519]
[1764354073418,0.02544,90797.0,90796.0,0.04349519]
[1764354074025,0.06096885,90797.0,90787.0,0.16377014]
[1764354074220,0.0364526,90797.0,90796.0,0.04333]
[1764354074426,0.06096763,90797.0,90796.0,0.04333]
[1764354074623,0.0364526,90797.0,90796.0,0.04333]
[1764354075023,0.4691826,90797.0,90796.0,0.04333]
[1764354076527,0.4701826,90797.0,90796.0,0.04333]
[1764354079133,0.0110132,90792.0,90791.0,0.0543431]
[1764354079331,0.4349632,90792.0,90791.0,0.02216]
[1764354079724,0.4349632,90792.0,90791.0,0.04333]
[1764354080629,0.4349632,90792.0,90791.0,0.04433]
[1764354080832,0.17395,90792.0,90791.0,0.04433]
[1764354081531,0.17395,90792.0,90791.0,0.04333]
[1764354081832,0.47395,90792.0,90791.0,0.04333]
[1764354083233,0.48206,90792.0,90791.0,0.04333]
[1764354083428,0.0599835,90788.0,90787.0,0.03890576]
[1764354083634,0.4199835,90788.0,90787.0,0.01252576]
[1764354084026,0.4199835,90788.0,90787.0,0.02353936]
[1764354084221,0.1799835,90788.0,90787.0,0.02353936]
[1764354084426,0.16897,90788.0,90787.0,0.07538936]
[1764354084621,0.04897,90788.0,90787.0,0.07538936]
[1764354084931,0.39897,90788.0,90787.0,0.07538936]
[1764354085439,0.06897,90788.0,90787.0,0.07538936]
[1764354085830,0.41897,90788.0,90787.0,0.02353936]
[1764354086028,0.41997,90788.0,90787.0,0.04991936]
[1764354086326,0.06997,90788.0,90787.0,0.07396936]
[1764354086638,0.06897,90788.0,90787.0,0.07496936]
[1764354087032,0.44897,90788.0,90787.0,0.06295576]
[1764354087338,0.44897,90788.0,90787.0,0.01352576]
[1764354087635,0.08897,90788.0,90787.0,0.06434576]
[1764354089435,0.08897,90788.0,90787.0,0.06234576]
[1764354089638,0.04897,90788.0,90787.0,0.06234576]
[1764354090027,0.04897,90788.0,90787.0,0.06334576]
[1764354091739,0.02399,90788.0,90787.0,0.06334576]
[1764354091938,0.04998,90796.0,90795.0,0.0608327]
[1764354092242,0.41998,90796.0,90795.0,0.0608327]
[1764354093042,0.41998,90796.0,90795.0,0.0628327]
[1764354095447,0.41998,90796.0,90787.0,0.01252576]
[1764354095448,0.04998,90788.0,90787.0,0.01252576]
[1764354095651,0.46540351,90788.0,90787.0,0.00016519]
[1764354095840,0.88540351,90788.0,90787.0,0.00016519]
[1764354096246,0.18540351,90788.0,90787.0,0.04998519]
[1764354096442,0.02554,90788.0,90787.0,0.04998519]
[1764354096643,0.02754,90788.0,90787.0,0.04998519]
[1764354097041,0.05298,90788.0,90787.0,0.04998519]
[1764354097250,0.05098,90788.0,90787.0,0.05098519]
[1764354098147,0.48098,90788.0,90787.0,0.05098519]
[1764354098450,0.06998,90788.0,90787.0,0.00116519]
[1764354099050,0.06998,90788.0,90787.0,0.02693519]
[1764354099857,0.06998,90788.0,90787.0,0.02593519]
[1764354100357,0.37998,90788.0,90787.0,0.02593519]
[1764354100766,0.37998,90788.0,90787.0,0.00016519]
[1764354100968,0.63998,90788.0,90787.0,0.00016519]
[1764354101867,0.64098,90788.0,90787.0,0.00016519]
[1764354102464,0.66541221,90788.0,90787.0,0.00016519]
[1764354102761,0.66441221,90788.0,90787.0,0.00016519]
[1764354102967,0.66541221,90788.0,90787.0,0.00016519]
[1764354104372,0.66641221,90788.0,90787.0,0.00016519]
[1764354104766,0.07641221,90788.0,90787.0,0.04998519]
[1764354104964,0.07641221,90788.0,90787.0,0.00016519]
[1764354105166,0.50641221,90788.0,90787.0,0.00016519]
[1764354105466,0.50741221,90788.0,90787.0,0.00016519]
[1764354105671,0.50841221,90788.0,90787.0,0.00016519]
[1764354106168,0.44741221,90788.0,90787.0,0.04998519]
[1764354106374,0.44641221,90788.0,90787.0,0.00016519]
[1764354108980,0.43641221,90788.0,90787.0,0.00016519]
[1764354109372,0.12641221,90788.0,90787.0,0.00016519]
[1764354109573,0.44641221,90788.0,90787.0,0.00016519]
[1764354109975,0.10641221,90788.0,90787.0,0.00016519]
[1764354110472,0.10641221,90788.0,90787.0,0.02593519]
[1764354110880,0.10641221,90788.0,90787.0,0.00016519]
[1764354111380,0.45641221,90788.0,90787.0,0.00016519]
[1764354111781,0.12641221,90788.0,90787.0,0.00016519]
[1764354112172,0.06641221,90788.0,90787.0,0.00016519]
[1764354112372,0.34641221,90788.0,90787.0,0.00016519]
[1764354113385,0.07641221,90788.0,90787.0,0.02593519]
[1764354113983,0.07641221,90788.0,90787.0,0.06099879]
[1764354113984,0.02643221,90788.0,90787.0,0.06099879]
[1764354114178,0.002,90788.0,90787.0,0.06099879]
[1764354114380,0.05014519,90797.0,90796.0,0.0608326]
[1764354114973,0.05014519,90797.0,90796.0,0.04982]
[1764354115783,0.05014519,90797.0,90796.0,0.05082]
[1764354117686,0.05014519,90797.0,90796.0,0.04982]
[1764354117879,0.05014519,90797.0,90796.0,0.05182]
[1764354118479,0.00016519,90797.0,90796.0,0.05182]
[1764354118778,0.00016519,90797.0,90796.0,0.04982]
[1764354118977,0.00016519,90797.0,90796.0,0.05182]
[1764354119173,0.02198519,90797.0,90796.0,0.05182]
[1764354119379,0.02198519,90797.0,90796.0,0.04982]
[1764354119582,0.02198519,90797.0,90796.0,0.05182]
[1764354120789,0.02198519,90797.0,90796.0,0.06353012]